[Event "44th Chess Olympiad Open 2022"]
[Site "Chennai"]
[Date "2022.07.31"]
[Round "3.4"]
[White "Diamant, Andre"]
[Black "Iturrizaga Bonelli, Eduardo"]
[Result "0-1"]
[WhiteElo "2538"]
[BlackElo "2619"]
[Annotator "RC"]
[PlyCount "110"]
[EventDate "2022.??.??"]
[TimeControl "60"]

1. e4 {[%emt 0:00:04]} c6 {[%emt 0:00:04]} 2. d4 {[%emt 0:00:45]} d5 {[%emt 0:
00:00]} 3. exd5 {[%emt 0:00:12]} cxd5 {[%emt 0:00:05]} 4. Bd3 {[%emt 0:00:26]}
Nc6 {[%emt 0:00:06]} 5. c3 {[%emt 0:00:03]} Qc7 {[%emt 0:00:06]} 6. h3 {
[%emt 0:00:50]} e6 {[%emt 0:02:28]} 7. Nf3 {[%emt 0:00:33]} Bd6 {[%emt 0:00:06]
} 8. O-O {[%emt 0:01:03]} Nge7 {[%emt 0:00:27]} 9. Re1 {[%emt 0:01:39]} Bd7 {
[%emt 0:01:21]} 10. Nbd2 {[%emt 0:11:22]} Ng6 {[%emt 0:05:55]} 11. c4 {[%emt 0:
00:00]} O-O {[%emt 0:14:10]} 12. a3 {[%emt 0:07:02]} dxc4 {[%emt 0:15:24]} 13.
Nxc4 {[%emt 0:00:34]} Be7 {[%emt 0:19:19]} 14. g3 {[%emt 0:17:45]} Bf6 {
[%emt 0:10:33]} 15. Bg5 {[%emt 0:08:11]} Bxd4 {[%emt 0:05:57]} 16. Nxd4 {
[%emt 0:13:47]} Nxd4 {[%emt 0:00:14]} 17. Bxg6 {[%emt 0:08:16]} Qxc4 {[%emt 0:
00:00]} 18. Be4 {[%emt 0:01:57]} Ba4 {[%emt 0:08:10]} 19. Qh5 {[%emt 0:04:37]}
g6 {[%emt 0:06:43]} 20. Qh6 {[%emt 0:02:06]} f5 {[%emt 0:01:28]} 21. Rac1 {
[%emt 0:00:41]} Bc2 {[%emt 0:00:16]} 22. Rxc2 {[%emt 0:04:34]} Nxc2 {[%emt 0:
00:00]} 23. Bxc2 {[%emt 0:00:18]} Qxc2 {[%emt 0:00:04]} 24. Rxe6 {[%emt 0:00:
00]} Qb1+ {[%emt 0:07:00]} 25. Kg2 {[%emt 0:01:38]} Qxb2 {[%emt 0:00:04]} 26.
Re7 {[%emt 0:02:05]} Rf7 {[%emt 0:00:05]} 27. Rxf7 {[%emt 0:00:10]} Kxf7 {
[%emt 0:00:02]} 28. Qxh7+ {[%emt 0:00:06]} Qg7 {[%emt 0:00:03]} 29. Qh4 {
[%emt 0:00:10]} b5 {[%emt 0:00:14]} 30. a4 {[%emt 0:01:27]} a6 {[%emt 0:00:06]}
31. axb5 {[%emt 0:00:24]} axb5 {[%emt 0:00:02]} 32. Qf4 {[%emt 0:00:27]} Kg8 {
[%emt 0:04:24]} 33. Qf3 {[%emt 0:00:46]} Rb8 {[%emt 0:00:07]} 34. Bf4 {[%emt 0:
00:00]} Rb6 {[%emt 0:00:43]} 35. Be3 {[%emt 0:00:39]} Re6 {[%emt 0:00:13]} 36.
Qa8+ {[%emt 0:00:31]} Kh7 {[%emt 0:00:07]} 37. Qd8 {[%emt 0:00:29]} Qe7 {
[%emt 0:00:23]} 38. Qb8 {[%emt 0:00:32]} Qd7 {[%emt 0:00:24]} 39. Qf8 {[%emt 0:
00:00]} Qg7 {[%emt 0:01:51]} 40. Qb4 {[%emt 0:00:34]} Qb7+ {[%emt 0:00:22]} 41.
Kh2 {[%emt 0:02:42]} Re4 {[%emt 0:01:32]} 42. Qf8 {[%emt 0:04:41]} Qg7 {
[%emt 0:00:19]} 43. Qd8 {[%emt 0:03:21]} Qe7 {[%emt 0:02:44]} 44. Qd5 {[%emt 0:
00:00]} b4 {[%emt 0:01:20]} 45. Bc5 {[%emt 0:01:04]} Qc7 {[%emt 0:00:18]} 46.
Be3 {[%emt 0:05:07]} Qe5 {[%emt 0:05:41]} 47. Qf7+ {[%emt 0:01:00]} Qg7 {
[%emt 0:00:04]} 48. Qd5 {[%emt 0:00:20]} Qe7 {[%emt 0:02:57]} 49. Bc5 {[%emt 0:
00:00]} Qc7 {[%emt 0:00:05]} 50. Be3 {[%emt 0:00:08]} Rc4 {[%emt 0:08:06]} 51.
Qe6 {[%emt 0:09:06]} b3 {[%emt 0:01:08]} 52. Bg5 {[%emt 0:02:17]} Rc2 {[%emt 0:
00:00]} 53. Qxb3 {[%emt 0:01:06]} Rxf2+ {[%emt 0:00:04]} 54. Kg1 {[%emt 0:00:
00]} Rc2 {[%emt 0:00:19]} 55. Bf4 {[%emt 0:00:48]} Qa7+ {[%emt 0:00:06]} 0-1

[Event "44th Chess Olympiad Open 2022"]
[Site "Chennai"]
[Date "2022.07.31"]
[Round "3.5"]
[White "Wojtaszek, Radoslaw"]
[Black "Kuybokarov, Temur"]
[Result "0-1"]
[WhiteElo "2708"]
[BlackElo "2583"]
[Annotator "TA"]
[PlyCount "118"]
[EventDate "2022.??.??"]
[TimeControl "60"]

{[%evp 11,118,12,30,7,46,27,40,35,36,34,39,65,58,18,40,18,28,25,21,0,0,0,13,9,
12,10,11,12,14,0,11,12,18,19,32,35,37,0,0,0,4,0,0,0,0,0,0,0,0,-11,-11,-11,-11,
-11,-11,-11,-11,-11,-11,-16,0,0,0,-245,-105,-106,-128,-145,-145,-246,-221,-290,
-277,-237,-240,-352,-350,-390,-362,-523,-508,-501,-484,-458,-425,-659,-600,
-920,-910,-652,-617,-5277,-587,-1715,-1793,-6331,-6191,-7793,-7280,-5122,-2600,
-29953,-29951,-6483,-6104,-6223,-6223,-1325,-871]} 1. d4 {[%emt 0:00:03]} Nf6 {
[%emt 0:00:09]} 2. c4 {[%emt 0:00:04]} g6 {[%emt 0:00:04]} 3. Nf3 {[%emt 0:00:
00]} Bg7 {[%emt 0:00:06]} 4. g3 {[%emt 0:00:03]} O-O {[%emt 0:00:37]} 5. Bg2 {
[%emt 0:00:05]} Nc6 {[%emt 0:00:16]} 6. O-O {[%emt 0:01:02]} d5 {[%emt 0:00:05]
} 7. Na3 {[%emt 0:05:27] D77: Fianchetto Grünfeld: 6 0-0: Replies other than
6...c6.} Be6 $5 {[%emt 0:00:17] An interesting side line.} 8. b3 {[%emt 0:00:
50]} Ne4 {[%emt 0:00:15]} 9. Bb2 {[%emt 0:00:40] White is slightly better.} a5
{[%emt 0:00:15]} 10. e3 {[%emt 0:05:35] [#]} a4 $146 {[%emt 0:00:00]} ({
Predecessor:} 10... Nb4 11. Nd2 Nd6 12. cxd5 Bxd5 13. e4 Bc6 14. Qe2 b6 15.
Rfd1 e6 16. Ndc4 Bb7 {½-½ (16) Bernal,E (2325)-Kirov,N (2455) Thessaloniki
1984}) 11. Nd2 {[%emt 0:04:02]} f5 {[%emt 0:34:07]} 12. Qe2 {[%emt 0:10:57]}
Nb4 {[%emt 0:08:18]} 13. cxd5 {[%emt 0:06:38]} (13. Rfd1 {feels hotter.} c6 14.
f3 Nxd2 15. Qxd2 Na6 16. Bc3) 13... Nxd2 {[%emt 0:10:15]} 14. Qxd2 {[%emt 0:04:
00]} Nxd5 {[%emt 0:00:31]} 15. Rac1 {[%emt 0:02:30]} axb3 {[%emt 0:01:20]} 16.
axb3 {[%emt 0:00:07]} c6 {[%emt 0:00:52]} 17. Nc4 {[%emt 0:01:47]} Qc7 {
[%emt 0:08:53]} 18. Ra1 {[%emt 0:00:42]} Rfd8 {[%emt 0:00:00]} 19. Rfc1 {
[%emt 0:05:41]} Nf6 {[%emt 0:02:48]} 20. Qb4 {[%emt 0:00:55]} Nd5 {[%emt 0:00:
44]} 21. Qe1 {[%emt 0:00:17]} Nb6 {[%emt 0:01:39]} 22. Ba3 {[%emt 0:06:48]} Bf6
{[%emt 0:03:13]} 23. Nxb6 {[%emt 0:10:16]} Qxb6 {[%emt 0:00:00]} 24. Bb4 {
[%emt 0:00:41] Threatens to win with Ba5.} (24. Bc5 $5 {[%cal Rc5b6]} Qc7 25.
Qb4 $14) 24... Rxa1 {[%emt 0:03:39]} 25. Rxa1 {[%emt 0:00:00] Black must now
prevent Ba5.} Rb8 {[%emt 0:00:32]} 26. Ra3 {[%emt 0:00:00]} Qd8 {[%emt 0:00:45]
} 27. Qa1 {[%emt 0:00:24]} h5 {[%emt 0:00:04]} 28. h4 {[%emt 0:03:08]} Bd5 {
[%emt 0:00:06]} 29. Bxd5+ {[%emt 0:03:59]} Qxd5 {[%emt 0:00:00]} 30. Ra8 {
[%emt 0:00:04]} Rxa8 {[%emt 0:00:28]} 31. Qxa8+ $11 {[%emt 0:00:00] Endgame
KQB-KQB} Kf7 {[%emt 0:01:00]} 32. Qxb7 {[%emt 0:00:00]} Qxb3 {[%emt 0:00:06]}
33. Qb6 $1 {[%emt 0:00:27]} Qb1+ {[%emt 0:00:10]} 34. Kg2 {[%emt 0:00:06]} Qe4+
{[%emt 0:00:07]} 35. Kf1 {[%emt 0:02:19]} f4 {[%emt 0:02:33]} 36. exf4 {
[%emt 0:05:48]} Bxd4 {[%emt 0:00:08]} 37. Qa5 {[%emt 0:06:45]} (37. Bc5 $11
Qd3+ 38. Kg2 Bxc5 39. Qxc5) 37... Qh1+ {[%emt 0:00:00]} (37... Qd3+ $1 $19 {
has better winning chances.} 38. Kg2 Qe2) 38. Ke2 $17 {[%emt 0:00:01]} Qb1 {
[%emt 0:00:09] Inhibits Qa2+.} 39. Bd2 {[%emt 0:00:00]} Qc2 $1 {[%emt 0:01:21]
Black is more active.} 40. Qb4 {[%emt 0:04:55]} (40. Qg5 $17) 40... c5 $19 {
[%emt 0:01:05]} 41. Qb7 {[%emt 0:30:43] [#]} Qc4+ {[%emt 0:11:47]} 42. Ke1 {
[%emt 0:00:00][%cal Yf4f5] [#]} Qd3 {[%emt 0:05:50][%cal Yd4f2] And now ...
Bxf2+! would win.} 43. Qd5+ {[%emt 0:00:00]} (43. f3 {was worth a try.} Bf2+
44. Kxf2 Qxd2+ 45. Kg1) 43... Kg7 {[%emt 0:03:16][%cal Yd4f2] Strongly
threatening ...Bxf2+!} 44. Qe6 {[%emt 0:00:00] [#]} Bxf2+ $1 {[%emt 0:00:13]}
45. Kxf2 {[%emt 0:00:00]} Qxd2+ {[%emt 0:00:05] KQ-KQ} 46. Kf3 {[%emt 0:00:00]}
Qd6 {[%emt 0:00:27]} 47. Qc4 {[%emt 0:00:00]} Kf6 {[%emt 0:04:18]} 48. Qc3+ {
[%emt 0:00:00]} (48. Qg8 $142 Qd3+ 49. Kg2) 48... Ke6 {[%emt 0:00:18]} 49. Qe1+
{[%emt 0:00:00]} Kf7 {[%emt 0:03:57]} 50. Qe4 {[%emt 0:00:00] Prevents Qd5.}
Qe6 {[%emt 0:00:29] ( -> ...Qxe4+)} 51. Qd3 {[%emt 0:00:00]} Qc6+ {[%emt 0:00:
33]} (51... c4 $142 52. Qc3 Qc6+ 53. Ke2 Qe4+ 54. Kf2 Ke6) 52. Kf2 {[%emt 0:00:
00]} c4 {[%emt 0:00:12]} 53. Qc3 {[%emt 0:00:00]} Qe4 {[%emt 0:00:31]} 54. Qd2
{[%emt 0:00:00]} Ke6 {[%emt 0:01:19] Hoping for ...Kf5.} 55. Qd8 {[%emt 0:00:
00]} Qd3 {[%emt 0:01:15]} 56. Qc8+ {[%emt 0:00:00]} Kf7 {[%emt 0:00:11]} 57.
Qa6 {[%emt 0:00:00]} Qd4+ {[%emt 0:00:58] Black is clearly winning.} 58. Kf3 {
[%emt 0:00:00]} Qd5+ {[%emt 0:00:13]} 59. Kf2 {[%emt 0:00:00]} c3 {[%emt 0:00:
14] Weighted Error Value: White=0.88/ Black=0.24 (precise)} 0-1

[Event "44th Chess Olympiad Open 2022"]
[Site "Chennai"]
[Date "2022.07.31"]
[Round "3.5"]
[White "Smirnov, Anton"]
[Black "Duda, Jan-Krzysztof"]
[Result "0-1"]
[WhiteElo "2600"]
[BlackElo "2750"]
[Annotator "TA"]
[PlyCount "52"]
[EventDate "2022.??.??"]
[TimeControl "60"]

{[%evp 23,52,0,0,0,0,0,0,0,0,0,0,0,0,0,0,0,0,13,12,0,32,31,21,-10,4,0,-3,-10,
-21,-682,-582]} 1. d4 {[%emt 0:00:11]} d5 {[%emt 0:00:17]} 2. c4 {[%emt 0:00:
00]} e6 {[%emt 0:00:00]} 3. Nc3 {[%emt 0:00:07]} c6 {[%emt 0:00:01]} 4. Nf3 {
[%emt 0:00:06]} Nf6 {[%emt 0:00:07]} 5. e3 {[%emt 0:00:04]} Nbd7 {[%emt 0:00:
00]} 6. Qc2 {[%emt 0:00:12]} Bd6 {[%emt 0:00:18]} 7. b3 {[%emt 0:00:06]} O-O {
[%emt 0:00:15]} 8. Be2 {[%emt 0:00:18]} b6 {[%emt 0:01:00]} 9. O-O {[%emt 0:00:
00]} Bb7 {[%emt 0:00:05]} 10. Bb2 {[%emt 0:00:04]} Qe7 {[%emt 0:01:35]} 11.
Rad1 {[%emt 0:00:13]} Rad8 {[%emt 0:00:55]} 12. Rfe1 {[%emt 0:00:06]} Rfe8 {
[%emt 0:00:06]} 13. Bf1 {[%emt 0:00:05] D45: Semi-Slav: 5 e3.} e5 {[%emt 0:00:
00]} 14. dxe5 {[%emt 0:00:34]} Nxe5 {[%emt 0:00:12]} 15. Nd4 {[%emt 0:00:14]
The position is equal.} dxc4 {[%emt 0:13:24][%cal Ye5d3]} 16. Nf5 {[%emt 0:00:
00]} Qe6 {[%emt 0:00:19][%cal Ye5d3] ...Nd3! is the strong threat.} 17. Nxd6 {
[%emt 0:00:08]} Rxd6 {[%emt 0:00:13]} 18. Rxd6 {[%emt 0:00:05]} Qxd6 {[%emt 0:
00:00]} 19. Rd1 {[%emt 0:00:06]} cxb3 $40 {[%emt 0:05:20] White needs to
defend precisely.} 20. axb3 {[%emt 0:00:24]} Qe7 {[%emt 0:00:15]} 21. Ne4 {
[%emt 0:03:21] White has compensation.} Nd5 {[%emt 0:02:24]} 22. Ng3 {[%emt 0:
08:26] [#] And now e4 would win.} Bc8 {[%emt 0:07:36] [#]} 23. e4 $146 {
[%emt 0:12:20]} ({Predecessor:} 23. Bxe5 Qxe5 24. Qxc6 Nf6 25. Bc4 Be6 26. Bxe6
Qxe6 27. Qxe6 fxe6 28. Rc1 Rd8 29. Kf1 {0-1 (63) Lazavik,D (2347)
-Hovhannisyan,R (2650) Riga 2019}) 23... Nf4 {[%emt 0:01:58]} 24. Qc3 {[%emt 0:
00:00] Black must now prevent Qxe5.} Qg5 {[%emt 0:09:58]} 25. Bc1 {[%emt 0:00:
00]} h5 {[%emt 0:04:41]} 26. Ne2 $2 {[%emt 0:17:15] [#]} (26. f3 $11) 26...
Qxg2+ $3 {[%emt 0:01:04] Weighted Error Value: White=0.63/ Black=0.03 
(flawless)} 0-1

[Event "44th Chess Olympiad Open 2022"]
[Site "Chennai"]
[Date "2022.07.31"]
[Round "3.5"]
[White "Bartel, Mateusz"]
[Black "Zhao, Zong-Yuan"]
[Result "1-0"]
[WhiteElo "2597"]
[BlackElo "2513"]
[Annotator "RC"]
[PlyCount "67"]
[EventDate "2022.??.??"]
[TimeControl "60"]

1. e4 {[%emt 0:00:04]} c5 {[%emt 0:00:05]} 2. Nf3 {[%emt 0:00:07]} Nc6 {
[%emt 0:00:08]} 3. Nc3 {[%emt 0:01:27]} d6 {[%emt 0:01:09]} 4. d4 {[%emt 0:00:
00]} cxd4 {[%emt 0:00:04]} 5. Nxd4 {[%emt 0:00:07]} Nf6 {[%emt 0:00:02]} 6. Bg5
{[%emt 0:00:10]} e6 {[%emt 0:00:10]} 7. Qd3 {[%emt 0:00:08]} a6 {[%emt 0:11:21]
} 8. Nxc6 {[%emt 0:01:42]} bxc6 {[%emt 0:00:08]} 9. O-O-O {[%emt 0:05:42]} d5 {
[%emt 0:05:47]} 10. Qg3 {[%emt 0:00:00]} Bb7 {[%emt 0:22:54]} 11. Be2 {[%emt 0:
00:00]} Be7 {[%emt 0:02:59]} 12. h4 {[%emt 0:18:58]} h5 {[%emt 0:18:09]} 13. e5
{[%emt 0:08:53]} Nd7 {[%emt 0:01:50]} 14. Bxe7 {[%emt 0:01:12]} Kxe7 {[%emt 0:
00:00]} 15. Qxg7 {[%emt 0:03:33]} Qg8 {[%emt 0:01:11]} 16. Qg5+ {[%emt 0:00:06]
} Qxg5+ {[%emt 0:00:19]} 17. hxg5 {[%emt 0:00:02]} c5 {[%emt 0:05:47]} 18. Rxh5
{[%emt 0:09:02]} Rxh5 {[%emt 0:07:03]} 19. Bxh5 {[%emt 0:00:07]} d4 {[%emt 0:
00:00]} 20. Ne2 {[%emt 0:05:33]} Nxe5 {[%emt 0:03:03]} 21. Re1 {[%emt 0:02:18]}
Rg8 {[%emt 0:05:56]} 22. f4 {[%emt 0:01:52]} Nc4 {[%emt 0:00:26]} 23. b4 {
[%emt 0:04:20]} cxb4 {[%emt 0:09:04]} 24. Nxd4 {[%emt 0:01:05]} Bxg2 {[%emt 0:
00:00]} 25. Nf5+ {[%emt 0:03:48]} Kf8 {[%emt 0:00:17]} 26. Bxf7 {[%emt 0:01:49]
} Kxf7 {[%emt 0:00:25]} 27. Nh6+ {[%emt 0:00:06]} Kg7 {[%emt 0:00:24]} 28. Nxg8
{[%emt 0:00:07]} Kxg8 {[%emt 0:00:06]} 29. Rxe6 {[%emt 0:00:05]} a5 {[%emt 0:
00:00]} 30. f5 {[%emt 0:00:52]} Bh3 {[%emt 0:01:17]} 31. Rc6 {[%emt 0:01:01]}
Ne5 {[%emt 0:00:41]} 32. Rc5 {[%emt 0:01:09]} Nf3 {[%emt 0:00:47]} 33. f6 {
[%emt 0:01:02]} Kf7 {[%emt 0:00:31]} 34. Rc7+ {[%emt 0:00:49]} 1-0

[Event "44th Chess Olympiad Open 2022"]
[Site "Chennai"]
[Date "2022.07.31"]
[Round "3.5"]
[White "Cheng, Bobby"]
[Black "Piorun, Kacper"]
[Result "1/2-1/2"]
[WhiteElo "2540"]
[BlackElo "2636"]
[Annotator "RC"]
[PlyCount "93"]
[EventDate "2022.??.??"]
[TimeControl "60"]

1. d4 {[%emt 0:00:03]} Nf6 {[%emt 0:00:07]} 2. c4 {[%emt 0:00:04]} e6 {[%emt 0:
00:00]} 3. Nf3 {[%emt 0:00:11]} d5 {[%emt 0:00:07]} 4. g3 {[%emt 0:00:07]} Be7
{[%emt 0:00:22]} 5. Bg2 {[%emt 0:00:27]} O-O {[%emt 0:01:06]} 6. O-O {[%emt 0:
00:00]} Nbd7 {[%emt 0:06:08]} 7. b3 {[%emt 0:06:31]} dxc4 {[%emt 0:00:00]} 8.
bxc4 {[%emt 0:00:05]} c5 {[%emt 0:00:00]} 9. Nc3 {[%emt 0:10:32]} cxd4 {
[%emt 0:06:11]} 10. Qxd4 {[%emt 0:18:36]} Bc5 {[%emt 0:22:45]} 11. Qh4 {
[%emt 0:00:00]} Qe7 {[%emt 0:10:56]} 12. Rb1 {[%emt 0:00:00]} Re8 {[%emt 0:00:
00]} 13. Rd1 {[%emt 0:18:42]} Nf8 {[%emt 0:00:00]} 14. Bg5 {[%emt 0:00:27]} Ng6
{[%emt 0:00:00]} 15. Bxf6 {[%emt 0:05:24]} gxf6 {[%emt 0:07:36]} 16. Qh6 {
[%emt 0:00:34]} Qf8 {[%emt 0:02:26]} 17. Qxf8+ {[%emt 0:01:04]} Kxf8 {[%emt 0:
00:00]} 18. Ne4 {[%emt 0:05:56]} Be7 {[%emt 0:00:00]} 19. c5 {[%emt 0:00:26]}
f5 {[%emt 0:00:00]} 20. Nd6 {[%emt 0:00:33]} Rd8 {[%emt 0:00:00]} 21. h4 {
[%emt 0:03:58]} Kg7 {[%emt 0:00:17]} 22. h5 {[%emt 0:04:53]} Nf8 {[%emt 0:00:
00]} 23. h6+ {[%emt 0:01:35]} Kf6 {[%emt 0:01:29]} 24. e4 {[%emt 0:03:32]} e5 {
[%emt 0:02:23]} 25. exf5 {[%emt 0:01:58]} Bxd6 {[%emt 0:00:11]} 26. cxd6 {
[%emt 0:01:25]} Kxf5 {[%emt 0:03:21]} 27. Rb5 {[%emt 0:07:05]} f6 {[%emt 0:00:
00]} 28. Nh4+ {[%emt 0:01:19]} Kg5 {[%emt 0:00:13]} 29. f4+ {[%emt 0:01:06]}
Kxh6 {[%emt 0:00:19]} 30. fxe5 {[%emt 0:00:05]} fxe5 {[%emt 0:03:11]} 31. Rxe5
{[%emt 0:01:59]} Be6 {[%emt 0:01:12]} 32. Bxb7 {[%emt 0:00:51]} Rab8 {[%emt 0:
00:00]} 33. Bf3 {[%emt 0:01:07]} Rb6 {[%emt 0:01:34]} 34. Ra5 {[%emt 0:02:30]}
Rbxd6 {[%emt 0:01:10]} 35. Rxd6 {[%emt 0:00:08]} Rxd6 {[%emt 0:00:02]} 36. Rxa7
{[%emt 0:00:05]} Nd7 {[%emt 0:04:34]} 37. a4 {[%emt 0:00:01]} Kg5 {[%emt 0:00:
00]} 38. a5 {[%emt 0:00:45]} Kf6 {[%emt 0:00:07]} 39. Ra8 {[%emt 0:01:13]} Nc5
{[%emt 0:00:57]} 40. Rf8+ {[%emt 0:01:04]} Ke5 {[%emt 0:00:27]} 41. Rh8 {
[%emt 0:06:48]} Ra6 {[%emt 0:03:20]} 42. Rxh7 {[%emt 0:00:12]} Rxa5 {[%emt 0:
00:00]} 43. Rh5+ {[%emt 0:00:21]} Kf6 {[%emt 0:04:13]} 44. Rh6+ {[%emt 0:06:19]
} Kg7 {[%emt 0:00:00]} 45. Rg6+ {[%emt 0:00:53]} Kf7 {[%emt 0:00:00]} 46. g4 {
[%emt 0:02:56]} Nd7 {[%emt 0:00:18]} 47. Rh6 {[%emt 0:02:09]} 1/2-1/2

[Event "44th Chess Olympiad Open 2022"]
[Site "Chennai"]
[Date "2022.07.31"]
[Round "3.6"]
[White "Mamedyarov, Shakhriyar"]
[Black "Peralta, Fernando"]
[Result "1-0"]
[WhiteElo "2759"]
[BlackElo "2591"]
[Annotator "TA"]
[PlyCount "49"]
[EventDate "2022.??.??"]
[TimeControl "60"]

{[%evp 9,49,11,22,7,25,14,14,4,8,4,29,0,6,-12,-26,-8,68,47,242,253,253,272,244,
217,233,230,293,319,357,283,271,242,326,323,322,310,304,305,411,397,470,410]} 
1. c4 {[%emt 0:01:24]} e6 {[%emt 0:00:29]} 2. Nc3 {[%emt 0:00:21]} b6 {[%emt 0:
00:00]} 3. d4 {[%emt 0:01:15]} Bb4 {[%emt 0:02:33]} 4. e3 {[%emt 0:08:54]}
Bxc3+ {[%emt 0:00:13]} 5. bxc3 {[%emt 0:00:05]} Bb7 {[%emt 0:00:09]} 6. a4 {
[%emt 0:01:44][%cal Ya2a4,Ya4a5] [#] A40: Unusual replies to 1 d4.} f5 $146 {
[%emt 0:06:55]} ({Predecessor:} 6... Nf6 7. f3 Nh5 8. Nh3 O-O 9. Bd3 Qh4+ 10.
Nf2 f5 11. Ra2 Nc6 12. O-O d6 {½-½ (39) Iordachescu,V (2610)-Tereick,B (2382)
Baden-Baden 2013}) 7. a5 {[%emt 0:01:44]} Nf6 {[%emt 0:00:43]} 8. f3 {[%emt 0:
02:14] The position is equal.} O-O {[%emt 0:01:23]} 9. Bd3 {[%emt 0:00:00]} c5
{[%emt 0:09:59]} 10. Nh3 {[%emt 0:11:29]} Nc6 {[%emt 0:03:17]} 11. a6 {[%emt 0:
07:54]} Bc8 {[%emt 0:00:09]} 12. O-O {[%emt 0:00:03]} Nh5 {[%emt 0:00:00]} (
12... d6 $11) 13. e4 {[%emt 0:05:01][%cal Ye3e4,Ye4e5]} f4 $2 {[%emt 0:00:52] 
[#] Black cannot hold the game after this.} ({Better is} 13... d6 $1 $14) 14.
e5 $18 {[%emt 0:00:12]} g6 {[%emt 0:08:43]} 15. Be4 {[%emt 0:00:00]} Rb8 {
[%emt 0:10:54]} 16. Bxc6 {[%emt 0:06:55]} dxc6 {[%emt 0:00:08]} 17. dxc5 {
[%emt 0:00:03]} bxc5 {[%emt 0:07:45]} 18. Ba3 {[%emt 0:03:37][%cal Yc1a3,Ya3e7,
Ye7d6]} Qe7 {[%emt 0:10:07]} 19. Qd4 {[%emt 0:02:57]} cxd4 {[%emt 0:00:25]} 20.
Bxe7 {[%emt 0:00:04]} Re8 {[%emt 0:00:23]} 21. Bd6 {[%emt 0:00:06]} Rb6 {
[%emt 0:00:09]} 22. cxd4 {[%emt 0:00:04]} Rxa6 {[%emt 0:00:00]} 23. Ng5 {
[%emt 0:01:21][%cal Yh3g5,Yg5e4,Ye4f6]} Ng7 {[%emt 0:00:00]} 24. Ne4 {[%emt 0:
03:46]} Rd8 {[%emt 0:00:19]} 25. Nf6+ {[%emt 0:00:18] Weighted Error Value:
White=0.11 (very precise) /Black=0.40} 1-0